[Event "*** Titled Tuesday Blitz"]
[Site "Chess.com"]
[Date "2020.04.21"]
[Round "3"]
[White "WiktoriaPOL"]
[Black "GMJustin"]
[Result "0-1"]
[WhiteElo "2058"]
[BlackElo "2330"]
[TimeControl "180+1"]
[EndTime "10:29:15 PDT"]
[Termination "GMJustin won on time"]

1. c4 {[%clk 0:03:00.9]} 1... e5 {[%clk 0:02:56.1]} 2. Nc3 {[%clk 0:02:59.3]}
2... Bc5 {[%clk 0:02:47.8]} 3. Nf3 {[%clk 0:02:57]} 3... d6 {[%clk 0:02:41.2]}
4. e3 {[%clk 0:02:55]} 4... c6 {[%clk 0:01:36.6]} 5. d4 {[%clk 0:02:52.6]} 5...
exd4 {[%clk 0:01:36.5]} 6. exd4 {[%clk 0:02:51.4]} 6... Bb6 {[%clk 0:01:36.8]}
7. Bd3 {[%clk 0:02:49.7]} 7... Ne7 {[%clk 0:01:34.1]} 8. O-O {[%clk 0:02:48.8]}
8... Bf5 {[%clk 0:01:29.3]} 9. Re1 {[%clk 0:02:45.1]} 9... Bxd3 {[%clk 0:01:24]}
10. Qxd3 {[%clk 0:02:46]} 10... O-O {[%clk 0:01:23.7]} 11. Ng5 {[%clk
0:02:38.4]} 11... Ng6 {[%clk 0:01:10.3]} 12. Be3 {[%clk 0:02:10.2]} 12... Nd7
{[%clk 0:01:09]} 13. f4 {[%clk 0:02:01.6]} 13... Nf6 {[%clk 0:00:57]} 14. Nge4
{[%clk 0:01:51.3]} 14... Ng4 {[%clk 0:00:44.2]} 15. Bd2 {[%clk 0:01:45.5]} 15...
d5 {[%clk 0:00:31.1]} 16. cxd5 {[%clk 0:01:43]} 16... cxd5 {[%clk 0:00:30.7]}
17. Ng3 {[%clk 0:01:33.6]} 17... Rc8 {[%clk 0:00:17.8]} 18. h3 {[%clk
0:01:30.4]} 18... Nf6 {[%clk 0:00:17.4]} 19. f5 {[%clk 0:01:20.7]} 19... Ne7
{[%clk 0:00:16.3]} 20. Bg5 {[%clk 0:01:17.1]} 20... Nc6 {[%clk 0:00:15.1]} 21.
Bxf6 {[%clk 0:01:10.1]} 21... Qxf6 {[%clk 0:00:14.9]} 22. Nxd5 {[%clk
0:00:50.4]} 22... Qxd4+ {[%clk 0:00:14.5]} 23. Qxd4 {[%clk 0:00:50.5]} 23...
Bxd4+ {[%clk 0:00:14.8]} 24. Kh1 {[%clk 0:00:50.1]} 24... Bxb2 {[%clk
0:00:14.8]} 25. Rab1 {[%clk 0:00:48.3]} 25... Be5 {[%clk 0:00:14.4]} 26. Ne2
{[%clk 0:00:41.4]} 26... Rfd8 {[%clk 0:00:14.3]} 27. Nef4 {[%clk 0:00:40.9]}
27... b6 {[%clk 0:00:13.2]} 28. Rbc1 {[%clk 0:00:34]} 28... Bxf4 {[%clk
0:00:12.9]} 29. Nxf4 {[%clk 0:00:33.4]} 29... Kf8 {[%clk 0:00:12.5]} 30. g4
{[%clk 0:00:23.9]} 30... Nd4 {[%clk 0:00:12.6]} 31. Rxc8 {[%clk 0:00:21.8]}
31... Rxc8 {[%clk 0:00:11.8]} 32. Rd1 {[%clk 0:00:21]} 32... Nf3 {[%clk
0:00:11.4]} 33. Kg2 {[%clk 0:00:20.5]} 33... Ne5 {[%clk 0:00:11]} 34. Rd2 {[%clk
0:00:16]} 34... g5 {[%clk 0:00:10.9]} 35. fxg6 {[%clk 0:00:14.3]} 35... hxg6
{[%clk 0:00:10.9]} 36. g5 {[%clk 0:00:13.6]} 36... Rc4 {[%clk 0:00:10.4]} 37.
Kg3 {[%clk 0:00:10.2]} 37... Ra4 {[%clk 0:00:09.8]} 38. Nd5 {[%clk 0:00:05.4]}
38... Ra3+ {[%clk 0:00:09.6]} 39. Kg2 {[%clk 0:00:03.7]} 39... Nc4 {[%clk
0:00:09.5]} 40. Rc2 {[%clk 0:00:02.3]} 40... Ne3+ {[%clk 0:00:09.7]} 41. Nxe3
{[%clk 0:00:01.9]} 41... Rxe3 {[%clk 0:00:09.9]} 42. Rc8+ {[%clk 0:00:02]} 42...
Kg7 {[%clk 0:00:08.3]} 43. Kf2 {[%clk 0:00:01.3]} 43... Rxh3 {[%clk 0:00:08.4]}
0-1

[Event "*** Titled Tuesday Blitz"]
[Site "Chess.com"]
[Date "2020.04.21"]
[Round "3"]
[White "Nitzan_Steinberg"]
[Black "RaphaeI"]
[Result "0-1"]
[WhiteElo "2838"]
[BlackElo "2648"]
[TimeControl "180+1"]
[EndTime "10:29:17 PDT"]
[Termination "RaphaeI won by resignation"]

1. e4 {[%clk 0:03:00.9]} 1... c5 {[%clk 0:02:59.7]} 2. Nf3 {[%clk 0:03:00.7]}
2... Nc6 {[%clk 0:03:00.1]} 3. d4 {[%clk 0:02:59.3]} 3... cxd4 {[%clk 0:03:00]}
4. Nxd4 {[%clk 0:03:00.2]} 4... Nf6 {[%clk 0:03:00.6]} 5. Nc3 {[%clk 0:03:00.4]}
5... e5 {[%clk 0:03:00.8]} 6. Ndb5 {[%clk 0:03:00.9]} 6... d6 {[%clk 0:03:01.4]}
7. Nd5 {[%clk 0:03:01.5]} 7... Nxd5 {[%clk 0:03:01.8]} 8. exd5 {[%clk
0:03:02.4]} 8... Nb8 {[%clk 0:03:02.4]} 9. a4 {[%clk 0:03:02.8]} 9... Be7 {[%clk
0:03:02]} 10. Be2 {[%clk 0:03:03.1]} 10... O-O {[%clk 0:03:02.2]} 11. O-O {[%clk
0:03:03.4]} 11... Nd7 {[%clk 0:03:02.1]} 12. Kh1 {[%clk 0:03:02.9]} 12... f5
{[%clk 0:02:47.4]} 13. f4 {[%clk 0:03:01.5]} 13... a6 {[%clk 0:02:35]} 14. Na3
{[%clk 0:03:01.2]} 14... Nc5 {[%clk 0:02:35.4]} 15. Nc4 {[%clk 0:02:56.9]} 15...
exf4 {[%clk 0:02:35]} 16. Bxf4 {[%clk 0:02:55.3]} 16... a5 {[%clk 0:02:35.4]}
17. Ra3 {[%clk 0:02:50.2]} 17... b6 {[%clk 0:02:34.4]} 18. h3 {[%clk 0:02:26.6]}
18... Ba6 {[%clk 0:02:27.8]} 19. Bh2 {[%clk 0:02:19.5]} 19... g6 {[%clk
0:02:13.9]} 20. Ne3 {[%clk 0:02:11.8]} 20... Bg5 {[%clk 0:01:58]} 21. Bxa6
{[%clk 0:02:07.6]} 21... Bxe3 {[%clk 0:01:57.4]} 22. Bb5 {[%clk 0:02:03.2]}
22... f4 {[%clk 0:01:33.8]} 23. c3 {[%clk 0:01:48.3]} 23... Ra7 {[%clk 0:01:26]}
24. Ra1 {[%clk 0:01:32.4]} 24... Raf7 {[%clk 0:01:22.7]} 25. Qg4 {[%clk
0:01:19.7]} 25... Qf6 {[%clk 0:01:13.9]} 26. Rae1 {[%clk 0:01:16.1]} 26... h5
{[%clk 0:01:13.6]} 27. Qd1 {[%clk 0:01:10.5]} 27... Qh4 {[%clk 0:00:58.1]} 28.
Qc2 {[%clk 0:01:05.6]} 28... Kg7 {[%clk 0:00:47.1]} 29. b4 {[%clk 0:01:05.1]}
29... Nd7 {[%clk 0:00:39.3]} 30. Bxd7 {[%clk 0:00:59.4]} 30... Rxd7 {[%clk
0:00:40.2]} 31. Qd3 {[%clk 0:00:53.4]} 31... Rdf7 {[%clk 0:00:31.2]} 32. Bg1
{[%clk 0:00:30.8]} 32... Bxg1 {[%clk 0:00:23.8]} 33. Kxg1 {[%clk 0:00:31.7]}
33... f3 {[%clk 0:00:21.8]} 34. Re4 {[%clk 0:00:22.7]} 34... Qg3 {[%clk
0:00:18.9]} 35. Rf2 {[%clk 0:00:20.6]} 35... Qg5 {[%clk 0:00:12.4]} 36. Qd4+
{[%clk 0:00:18.8]} 36... Kh7 {[%clk 0:00:12.8]} 37. h4 {[%clk 0:00:16]} 37...
Qc1+ {[%clk 0:00:12.4]} 38. Rf1 {[%clk 0:00:16.2]} 38... f2+ {[%clk 0:00:12.1]}
39. Qxf2 {[%clk 0:00:13.7]} 39... Qxf1+ {[%clk 0:00:12.1]} 40. Qxf1 {[%clk
0:00:12.8]} 40... Rxf1+ {[%clk 0:00:13]} 41. Kh2 {[%clk 0:00:13.4]} 41... axb4
{[%clk 0:00:12.3]} 42. cxb4 {[%clk 0:00:12.7]} 42... Ra1 {[%clk 0:00:12.8]} 43.
b5 {[%clk 0:00:12.9]} 43... Rf5 {[%clk 0:00:11.2]} 44. Re7+ {[%clk 0:00:12.4]}
44... Kh6 {[%clk 0:00:11]} 45. Rb7 {[%clk 0:00:11.3]} 45... Rxd5 {[%clk
0:00:10.9]} 46. Rxb6 {[%clk 0:00:11.7]} 46... Rxa4 {[%clk 0:00:11.1]} 47. Rb8
{[%clk 0:00:12.3]} 47... Rb4 {[%clk 0:00:11.3]} 48. b6 {[%clk 0:00:12.3]} 48...
Rdb5 {[%clk 0:00:11.4]} 49. Rh8+ {[%clk 0:00:12.4]} 49... Kg7 {[%clk 0:00:11.2]}
50. Rd8 {[%clk 0:00:13.3]} 50... Rxb6 {[%clk 0:00:11.2]} 51. Rd7+ {[%clk
0:00:14.2]} 51... Kf6 {[%clk 0:00:10.9]} 0-1

[Event "*** Titled Tuesday Blitz"]
[Site "Chess.com"]
[Date "2020.04.21"]
[Round "3"]
[White "Artem_Sadovsky"]
[Black "dalmatinac101"]
[Result "0-1"]
[WhiteElo "2551"]
[BlackElo "2806"]
[TimeControl "180+1"]
[EndTime "10:29:18 PDT"]
[Termination "dalmatinac101 won by resignation"]

1. Nf3 {[%clk 0:02:59.4]} 1... g6 {[%clk 0:02:59.2]} 2. g3 {[%clk 0:02:59.5]}
2... Bg7 {[%clk 0:03:00.1]} 3. Bg2 {[%clk 0:03:00]} 3... e5 {[%clk 0:03:00.2]}
4. d3 {[%clk 0:02:58.2]} 4... d5 {[%clk 0:03:00.3]} 5. O-O {[%clk 0:02:58.9]}
5... Nc6 {[%clk 0:03:00.7]} 6. e4 {[%clk 0:02:55.9]} 6... Nge7 {[%clk
0:02:59.1]} 7. Nc3 {[%clk 0:02:51.8]} 7... d4 {[%clk 0:02:57.4]} 8. Ne2 {[%clk
0:02:51.8]} 8... h6 {[%clk 0:02:57.9]} 9. Nd2 {[%clk 0:02:50.8]} 9... g5 {[%clk
0:02:58]} 10. f4 {[%clk 0:02:47.6]} 10... gxf4 {[%clk 0:02:58.2]} 11. gxf4
{[%clk 0:02:48.5]} 11... Rg8 {[%clk 0:02:57.6]} 12. Nf3 {[%clk 0:02:44.2]} 12...
Bg4 {[%clk 0:02:57.4]} 13. Kh1 {[%clk 0:02:41.3]} 13... Qd7 {[%clk 0:02:53.4]}
14. f5 {[%clk 0:02:41.5]} 14... O-O-O {[%clk 0:02:50]} 15. h3 {[%clk 0:02:34.6]}
15... Bxf3 {[%clk 0:02:42.3]} 16. Bxf3 {[%clk 0:02:35.5]} 16... Bf6 {[%clk
0:02:42.6]} 17. Bh5 {[%clk 0:02:28.1]} 17... Rg7 {[%clk 0:02:42.5]} 18. Rg1
{[%clk 0:02:23]} 18... Rxg1+ {[%clk 0:02:28.2]} 19. Qxg1 {[%clk 0:02:19.3]}
19... Rg8 {[%clk 0:02:27.2]} 20. Qf2 {[%clk 0:02:16.3]} 20... Nd8 {[%clk
0:02:22.1]} 21. Bd2 {[%clk 0:01:50.3]} 21... Qc6 {[%clk 0:02:22.4]} 22. c4
{[%clk 0:01:36.2]} 22... Bg5 {[%clk 0:02:19.3]} 23. Bxg5 {[%clk 0:01:24.4]}
23... Rxg5 {[%clk 0:02:13.4]} 24. f6 {[%clk 0:01:24.7]} 24... Ng8 {[%clk
0:02:07.9]} 25. Bg4+ {[%clk 0:01:22.3]} 25... Kb8 {[%clk 0:02:08.2]} 26. Rf1
{[%clk 0:01:20.5]} 26... Rg6 {[%clk 0:02:05]} 27. Qh4 {[%clk 0:01:19]} 27...
Rxf6 {[%clk 0:01:52.9]} 28. Kh2 {[%clk 0:01:12.9]} 28... a5 {[%clk 0:01:49.7]}
29. Ng3 {[%clk 0:01:10]} 29... Ka7 {[%clk 0:01:42.8]} 30. Rxf6 {[%clk
0:01:00.3]} 30... Qxf6 {[%clk 0:01:39.9]} 31. Qxf6 {[%clk 0:00:59]} 31... Nxf6
{[%clk 0:01:40.8]} 32. Nf5 {[%clk 0:00:59.9]} 32... h5 {[%clk 0:01:40.4]} 33.
Bd1 {[%clk 0:00:58.6]} 33... Ne6 {[%clk 0:01:39.8]} 34. Kg3 {[%clk 0:00:53.6]}
34... Nf4 {[%clk 0:01:37.4]} 35. Bc2 {[%clk 0:00:31.3]} 35... Nd7 {[%clk
0:01:22.2]} 36. Nxd4 {[%clk 0:00:29.4]} 36... h4+ {[%clk 0:01:16.6]} 37. Kf3
{[%clk 0:00:28.8]} 37... Nxh3 {[%clk 0:01:12.7]} 38. Nb5+ {[%clk 0:00:24.8]}
38... Kb6 {[%clk 0:01:11.7]} 39. Kg4 {[%clk 0:00:25.7]} 39... Nf2+ {[%clk
0:01:04.7]} 40. Kxh4 {[%clk 0:00:26.1]} 40... Nc5 {[%clk 0:01:04.3]} 41. d4
{[%clk 0:00:25.1]} 41... exd4 {[%clk 0:00:59.8]} 42. Nxd4 {[%clk 0:00:26]} 42...
Nfxe4 {[%clk 0:00:58]} 43. Kg4 {[%clk 0:00:26.4]} 43... Nd6 {[%clk 0:00:57.4]}
44. b3 {[%clk 0:00:25.3]} 44... Na6 {[%clk 0:00:57.2]} 45. Kf4 {[%clk
0:00:24.8]} 45... Kc5 {[%clk 0:00:57.6]} 46. Nf3 {[%clk 0:00:21.8]} 46... Kb4
{[%clk 0:00:57.6]} 47. Ne5 {[%clk 0:00:16.4]} 47... Ka3 {[%clk 0:00:57.8]} 48.
Nd7 {[%clk 0:00:14.1]} 48... Kxa2 {[%clk 0:00:53.4]} 49. c5 {[%clk 0:00:14.4]}
49... Nb5 {[%clk 0:00:53.7]} 50. Bd3 {[%clk 0:00:14]} 50... Nd4 {[%clk
0:00:49.1]} 51. Ke5 {[%clk 0:00:09.7]} 51... Nc6+ {[%clk 0:00:42.1]} 52. Kf6
{[%clk 0:00:07.3]} 52... Kxb3 {[%clk 0:00:40.9]} 53. Kxf7 {[%clk 0:00:02.3]}
53... a4 {[%clk 0:00:41]} 54. Bf5 {[%clk 0:00:02]} 54... Nd4 {[%clk 0:00:38.4]}
55. Be4 {[%clk 0:00:01.4]} 55... c6 {[%clk 0:00:37.9]} 56. Bd3 {[%clk
0:00:01.5]} 56... a3 {[%clk 0:00:37.6]} 0-1

[Event "*** Titled Tuesday Blitz"]
[Site "Chess.com"]
[Date "2020.04.21"]
[Round "3"]
[White "elisak43"]
[Black "PetrolulSah"]
[Result "1-0"]
[WhiteElo "2389"]
[BlackElo "2193"]
[TimeControl "180+1"]
[EndTime "10:29:18 PDT"]
[Termination "elisak43 won on time"]

1. e4 {[%clk 0:03:00.9]} 1... e5 {[%clk 0:02:59.5]} 2. Nc3 {[%clk 0:03:00.3]}
2... Nf6 {[%clk 0:02:57.4]} 3. f4 {[%clk 0:02:59.9]} 3... d6 {[%clk 0:02:46.5]}
4. Nf3 {[%clk 0:02:59.1]} 4... Nc6 {[%clk 0:02:45.8]} 5. Bc4 {[%clk 0:02:58.7]}
5... Be6 {[%clk 0:02:35]} 6. Bxe6 {[%clk 0:02:56.5]} 6... fxe6 {[%clk
0:02:34.5]} 7. O-O {[%clk 0:02:56.5]} 7... exf4 {[%clk 0:02:29.1]} 8. d4 {[%clk
0:02:45.7]} 8... e5 {[%clk 0:02:26.2]} 9. d5 {[%clk 0:02:45.4]} 9... Ne7 {[%clk
0:02:15.7]} 10. Ng5 {[%clk 0:02:45]} 10... Ng6 {[%clk 0:02:09.1]} 11. Ne6 {[%clk
0:02:43.6]} 11... Qd7 {[%clk 0:02:08.8]} 12. Nb5 {[%clk 0:02:18]} 12... Rc8
{[%clk 0:01:48.1]} 13. Nxa7 {[%clk 0:02:17]} 13... Ra8 {[%clk 0:01:46.9]} 14.
Nb5 {[%clk 0:02:17.2]} 14... Rc8 {[%clk 0:01:47]} 15. Qd3 {[%clk 0:02:02.3]}
15... c6 {[%clk 0:01:43.2]} 16. dxc6 {[%clk 0:01:51]} 16... bxc6 {[%clk
0:01:36]} 17. Nxf8 {[%clk 0:01:49.2]} 17... Kxf8 {[%clk 0:01:21.7]} 18. Qxd6+
{[%clk 0:01:47.7]} 18... Qxd6 {[%clk 0:01:19.4]} 19. Nxd6 {[%clk 0:01:48.6]}
19... Rd8 {[%clk 0:01:18.3]} 20. Nc4 {[%clk 0:01:37.2]} 20... Rd4 {[%clk
0:01:17.4]} 21. b3 {[%clk 0:01:34.4]} 21... Rxe4 {[%clk 0:01:10]} 22. Ba3+
{[%clk 0:01:34.2]} 22... Ne7 {[%clk 0:00:59.3]} 23. Nd6 {[%clk 0:01:11.7]} 23...
Re2 {[%clk 0:00:35.3]} 24. Nf5 {[%clk 0:01:10.9]} 24... Nd5 {[%clk 0:00:33.1]}
25. c4 {[%clk 0:01:10.7]} 25... g6 {[%clk 0:00:33.3]} 26. cxd5 {[%clk 0:01:09]}
26... gxf5 {[%clk 0:00:31.5]} 27. dxc6 {[%clk 0:01:08.8]} 27... Kf7 {[%clk
0:00:30.4]} 28. Rfc1 {[%clk 0:00:31.7]} 28... Rg8 {[%clk 0:00:28.1]} 29. g3
{[%clk 0:00:27.4]} 29... fxg3 {[%clk 0:00:27.4]} 30. h3 {[%clk 0:00:27.5]} 30...
Rc8 {[%clk 0:00:23.5]} 31. c7 {[%clk 0:00:17.6]} 31... Nd5 {[%clk 0:00:23.4]}
32. b4 {[%clk 0:00:10.8]} 32... Rxc7 {[%clk 0:00:22.1]} 33. b5 {[%clk
0:00:11.2]} 33... Rxc1+ {[%clk 0:00:17.3]} 34. Rxc1 {[%clk 0:00:12.1]} 34...
Rxa2 {[%clk 0:00:17.1]} 35. Bd6 {[%clk 0:00:12.1]} 35... Ke6 {[%clk 0:00:16.3]}
36. Bc5 {[%clk 0:00:11.6]} 36... Rb2 {[%clk 0:00:14.6]} 37. b6 {[%clk
0:00:09.2]} 37... Nxb6 {[%clk 0:00:13.6]} 38. Bf8 {[%clk 0:00:06.4]} 38... Nd5
{[%clk 0:00:10.2]} 39. Rc6+ {[%clk 0:00:06]} 39... Kf7 {[%clk 0:00:09.5]} 40.
Bd6 {[%clk 0:00:05.3]} 40... Re2 {[%clk 0:00:03.3]} 41. Rc5 {[%clk 0:00:04.3]}
41... Ke6 {[%clk 0:00:02.3]} 42. Bf8 {[%clk 0:00:03.6]} 42... f4 {[%clk
0:00:01.8]} 43. Kf1 {[%clk 0:00:03.6]} 43... f3 {[%clk 0:00:01.4]} 44. Rc6+
{[%clk 0:00:04.4]} 1-0

[Event "*** Titled Tuesday Blitz"]
[Site "Chess.com"]
[Date "2020.04.21"]
[Round "3"]
[White "AcsinteMatei"]
[Black "amiralfio"]
[Result "1/2-1/2"]
[WhiteElo "2257"]
[BlackElo "2518"]
[TimeControl "180+1"]
[EndTime "10:29:19 PDT"]
[Termination "Game drawn by stalemate"]

1. d4 {[%clk 0:03:00.9]} 1... d5 {[%clk 0:02:52]} 2. Bf4 {[%clk 0:02:59.8]} 2...
c5 {[%clk 0:02:50.2]} 3. c3 {[%clk 0:02:59.3]} 3... Nc6 {[%clk 0:02:50.3]} 4. e3
{[%clk 0:02:57.2]} 4... Qb6 {[%clk 0:02:49.1]} 5. Na3 {[%clk 0:02:40.2]} 5... a6
{[%clk 0:02:42.9]} 6. Qb3 {[%clk 0:02:22.1]} 6... Qxb3 {[%clk 0:02:34.3]} 7.
axb3 {[%clk 0:02:21.8]} 7... Ra7 {[%clk 0:02:12.2]} 8. Bc7 {[%clk 0:02:11.4]}
8... Nf6 {[%clk 0:01:56.5]} 9. Bb6 {[%clk 0:02:07.9]} 9... Ra8 {[%clk
0:01:56.7]} 10. Nb5 {[%clk 0:01:49.8]} 10... Rb8 {[%clk 0:01:41.7]} 11. Bc7
{[%clk 0:01:34.7]} 11... Ra8 {[%clk 0:01:20.5]} 12. dxc5 {[%clk 0:01:32.9]}
12... e5 {[%clk 0:01:07.7]} 13. Nd6+ {[%clk 0:01:18.9]} 13... Bxd6 {[%clk
0:00:49.5]} 14. Bxd6 {[%clk 0:01:12.8]} 14... Ne4 {[%clk 0:00:46]} 15. b4 {[%clk
0:01:06.4]} 15... Nxd6 {[%clk 0:00:35.4]} 16. cxd6 {[%clk 0:01:06.5]} 16... Kd7
{[%clk 0:00:36.3]} 17. b5 {[%clk 0:01:06]} 17... Na7 {[%clk 0:00:22.1]} 18. bxa6
{[%clk 0:01:02.7]} 18... bxa6 {[%clk 0:00:23]} 19. Bxa6 {[%clk 0:01:00.7]} 19...
Nc6 {[%clk 0:00:23]} 20. Bxc8+ {[%clk 0:00:59.6]} 20... Rhxc8 {[%clk 0:00:23.9]}
21. Rd1 {[%clk 0:00:53.1]} 21... Kxd6 {[%clk 0:00:21.8]} 22. Nf3 {[%clk
0:00:52.7]} 22... Rcb8 {[%clk 0:00:20.3]} 23. c4 {[%clk 0:00:42.6]} 23... Ra5
{[%clk 0:00:08.3]} 24. O-O {[%clk 0:00:30.8]} 24... Rxb2 {[%clk 0:00:07.7]} 25.
cxd5 {[%clk 0:00:29.6]} 25... Rxd5 {[%clk 0:00:07.2]} 26. e4 {[%clk 0:00:30.5]}
26... Rxd1 {[%clk 0:00:06.3]} 27. Rxd1+ {[%clk 0:00:31.4]} 27... Ke6 {[%clk
0:00:06.7]} 28. Rc1 {[%clk 0:00:31.7]} 28... Nd4 {[%clk 0:00:06.2]} 29. Rd1
{[%clk 0:00:28.9]} 29... Nxf3+ {[%clk 0:00:05.6]} 30. gxf3 {[%clk 0:00:29.3]}
30... h5 {[%clk 0:00:04.7]} 31. Kg2 {[%clk 0:00:29.8]} 31... g5 {[%clk
0:00:04.8]} 32. h4 {[%clk 0:00:29]} 32... f6 {[%clk 0:00:04.1]} 33. Rh1 {[%clk
0:00:27.6]} 33... g4 {[%clk 0:00:02.6]} 34. fxg4 {[%clk 0:00:27.4]} 34... hxg4
{[%clk 0:00:03.5]} 35. h5 {[%clk 0:00:27.8]} 35... Kf7 {[%clk 0:00:02.4]} 36.
Rh4 {[%clk 0:00:27.5]} 36... Kg7 {[%clk 0:00:01]} 37. Rxg4+ {[%clk 0:00:28]}
37... Kh6 {[%clk 0:00:01.9]} 38. Rg6+ {[%clk 0:00:28.6]} 38... Kxh5 {[%clk
0:00:02.3]} 39. Rxf6 {[%clk 0:00:29.3]} 39... Rb5 {[%clk 0:00:01.6]} 40. Kg3
{[%clk 0:00:28]} 40... Kg5 {[%clk 0:00:01.5]} 41. Rf5+ {[%clk 0:00:27.9]} 41...
Kg6 {[%clk 0:00:02.4]} 42. f4 {[%clk 0:00:27.9]} 42... exf4+ {[%clk 0:00:03.3]}
43. Kxf4 {[%clk 0:00:27.7]} 43... Rxf5+ {[%clk 0:00:03.8]} 44. exf5+ {[%clk
0:00:28.6]} 44... Kf6 {[%clk 0:00:04.5]} 45. Ke4 {[%clk 0:00:29.4]} 45... Kf7
{[%clk 0:00:04.8]} 46. Ke5 {[%clk 0:00:30.3]} 46... Ke7 {[%clk 0:00:05.3]} 47.
f6+ {[%clk 0:00:30.1]} 47... Kf7 {[%clk 0:00:05.8]} 48. Kf5 {[%clk 0:00:30.5]}
48... Kf8 {[%clk 0:00:06.3]} 49. Kg6 {[%clk 0:00:30.8]} 49... Kg8 {[%clk
0:00:06.7]} 50. Kf5 {[%clk 0:00:31.1]} 50... Kf7 {[%clk 0:00:06.5]} 51. Ke5
{[%clk 0:00:31.4]} 51... Kf8 {[%clk 0:00:06.9]} 52. Ke6 {[%clk 0:00:31.3]} 52...
Ke8 {[%clk 0:00:07.1]} 53. Kf5 {[%clk 0:00:31]} 53... Kf7 {[%clk 0:00:07.1]} 54.
Kg5 {[%clk 0:00:31]} 54... Kf8 {[%clk 0:00:07.3]} 55. Kg6 {[%clk 0:00:31.6]}
55... Kg8 {[%clk 0:00:07.4]} 56. f7+ {[%clk 0:00:31.9]} 56... Kf8 {[%clk
0:00:07.8]} 57. Kf6 {[%clk 0:00:32.4]} 1/2-1/2

[Event "*** Titled Tuesday Blitz"]
[Site "Chess.com"]
[Date "2020.04.21"]
[Round "3"]
[White "Bulldog167"]
[Black "Skatchkov_V"]
[Result "1-0"]
[WhiteElo "2771"]
[BlackElo "2557"]
[TimeControl "180+1"]
[EndTime "10:29:20 PDT"]
[Termination "Bulldog167 won on time"]

1. d4 {[%clk 0:03:00.9]} 1... Nf6 {[%clk 0:02:59.5]} 2. c4 {[%clk 0:03:01.5]}
2... e6 {[%clk 0:02:59.9]} 3. Nf3 {[%clk 0:03:02]} 3... b6 {[%clk 0:03:00.1]} 4.
Bf4 {[%clk 0:03:01.7]} 4... Bb7 {[%clk 0:02:59.9]} 5. e3 {[%clk 0:03:02.2]} 5...
Be7 {[%clk 0:03:00.4]} 6. Nc3 {[%clk 0:03:02.2]} 6... O-O {[%clk 0:03:00.8]} 7.
h3 {[%clk 0:02:54.6]} 7... d5 {[%clk 0:02:53.5]} 8. cxd5 {[%clk 0:02:49.9]} 8...
Nxd5 {[%clk 0:02:46.3]} 9. Nxd5 {[%clk 0:02:50.3]} 9... Qxd5 {[%clk 0:02:45.4]}
10. a3 {[%clk 0:02:40.5]} 10... c5 {[%clk 0:02:38.2]} 11. dxc5 {[%clk
0:02:37.3]} 11... Qxc5 {[%clk 0:02:14.8]} 12. Rc1 {[%clk 0:02:35.7]} 12... Qa5+
{[%clk 0:02:14.2]} 13. Qd2 {[%clk 0:02:36]} 13... Qxd2+ {[%clk 0:02:09.4]} 14.
Nxd2 {[%clk 0:02:36.9]} 14... Nc6 {[%clk 0:02:06.5]} 15. Bd3 {[%clk 0:02:35.4]}
15... Rac8 {[%clk 0:02:02.6]} 16. Ke2 {[%clk 0:02:35.2]} 16... Rfd8 {[%clk
0:01:56.6]} 17. Bg3 {[%clk 0:02:25.7]} 17... Bf6 {[%clk 0:01:12.4]} 18. Nc4
{[%clk 0:02:00.4]} 18... Ba6 {[%clk 0:01:00.2]} 19. Rhd1 {[%clk 0:01:40.9]}
19... Bxc4 {[%clk 0:00:58]} 20. Rxc4 {[%clk 0:01:35.3]} 20... Bxb2 {[%clk
0:00:54.9]} 21. Rb1 {[%clk 0:01:11.5]} 21... Bxa3 {[%clk 0:00:51.8]} 22. Ra4
{[%clk 0:01:11.7]} 22... Bc5 {[%clk 0:00:49.2]} 23. Ba6 {[%clk 0:01:11.3]} 23...
Rb8 {[%clk 0:00:20.9]} 24. Bxb8 {[%clk 0:01:09.1]} 24... Nxb8 {[%clk 0:00:21.3]}
25. Bb5 {[%clk 0:01:07.2]} 25... a5 {[%clk 0:00:21.5]} 26. Rd1 {[%clk
0:01:07.1]} 26... Rxd1 {[%clk 0:00:17.1]} 27. Kxd1 {[%clk 0:01:08]} 27... Kf8
{[%clk 0:00:18]} 28. Ke2 {[%clk 0:01:06.4]} 28... Ke7 {[%clk 0:00:18.4]} 29. Rh4
{[%clk 0:01:00.9]} 29... h6 {[%clk 0:00:17.6]} 30. Rg4 {[%clk 0:01:01.2]} 30...
g6 {[%clk 0:00:18]} 31. Rh4 {[%clk 0:00:57.6]} 31... h5 {[%clk 0:00:17.5]} 32.
g4 {[%clk 0:00:57.1]} 32... hxg4 {[%clk 0:00:17.8]} 33. hxg4 {[%clk 0:00:58]}
33... Bb4 {[%clk 0:00:16.6]} 34. Rh8 {[%clk 0:00:53]} 34... Nd7 {[%clk
0:00:15.6]} 35. Ra8 {[%clk 0:00:53.2]} 35... Nc5 {[%clk 0:00:14.3]} 36. g5
{[%clk 0:00:51]} 36... Bc3 {[%clk 0:00:12.5]} 37. f4 {[%clk 0:00:47.3]} 37... e5
{[%clk 0:00:12.5]} 38. Ra7+ {[%clk 0:00:41.3]} 38... Ke6 {[%clk 0:00:11.3]} 39.
Bc4+ {[%clk 0:00:41.2]} 39... Kd6 {[%clk 0:00:11.7]} 40. Bxf7 {[%clk 0:00:39.9]}
40... exf4 {[%clk 0:00:11.2]} 41. exf4 {[%clk 0:00:40.8]} 41... Ne6 {[%clk
0:00:09.4]} 42. Kf3 {[%clk 0:00:32.9]} 42... Nc7 {[%clk 0:00:06.5]} 43. Bxg6
{[%clk 0:00:29.3]} 43... b5 {[%clk 0:00:01.9]} 44. f5 {[%clk 0:00:26.4]} 44...
a4 {[%clk 0:00:01.9]} 45. f6 {[%clk 0:00:24.5]} 45... Bd4 {[%clk 0:00:01.3]} 46.
f7 {[%clk 0:00:23.9]} 1-0